bitfinex/quotes_SOLUSD_20250815
["timestamp","ask_amount","ask_price","bid_price","bid_amount"]
[1755227292854,0.06,194.25,194.24,26.0]
[1755227293071,6.9777442,194.41,194.29,26.0]
[1755227293362,0.72,194.42,194.39,6.9777442]
[1755227293658,0.72,194.42,194.4,36.42]
[1755227294166,3.43439543,194.47,194.4,41.56394652]
[1755227294338,0.72,194.47,194.43,6.9777442]
[1755227294536,0.72,194.46,194.44,36.42]
[1755227294734,0.72,194.45,194.44,36.42]
[1755227295136,7.6977442,194.48,194.44,36.42]
[1755227295334,7.6977442,194.47,194.44,36.42]
[1755227295553,0.72,194.46,194.44,36.42]
[1755227297431,7.6977442,194.45,194.44,36.42]
[1755227298056,0.72,194.45,194.44,36.42]
[1755227298353,7.6977442,194.45,194.44,36.42]
[1755227298566,7.6977442,194.45,194.44,36.4]
[1755227299054,7.6977442,194.45,194.42,36.4]
[1755227299357,0.72,194.44,194.42,36.4]
[1755227299552,6.9777442,194.44,194.42,36.4]
[1755227299743,0.72,194.43,194.42,36.4]
[1755227300141,5.14219433,194.47,194.42,36.4]
[1755227300449,7.6977442,194.47,194.42,41.54349716]
[1755227300648,7.6977442,194.47,194.42,42.21349716]
[1755227301030,22.85082626,194.55,194.42,42.21349716]
[1755227301031,0.72,194.46,194.42,41.54349716]
[1755227301356,7.6977442,194.46,194.42,41.54349716]
[1755227301861,0.72,194.45,194.42,41.54349716]
[1755227302943,22.85082626,194.55,194.42,41.54349716]
[1755227302944,0.72,194.47,194.42,41.54349716]
[1755227303160,0.72,194.46,194.42,41.54349716]
[1755227303459,7.6977442,194.45,194.42,41.54349716]
[1755227303753,0.06,194.45,194.42,41.54349716]
[1755227305832,0.78,194.45,194.42,41.54349716]
[1755227306036,0.06,194.45,194.42,41.54349716]
[1755227307067,7.7577442,194.45,194.42,41.54349716]
[1755227309471,0.06,194.45,194.42,41.54349716]
[1755227309971,7.0377442,194.45,194.42,41.54349716]
[1755227310175,0.06,194.45,194.42,41.54349716]
[1755227310355,0.06,194.45,194.44,6.9777442]
[1755227310546,6.9777442,194.53,194.44,69.3577442]
[1755227310746,6.9777442,194.54,194.47,26.0]
[1755227311051,6.9777442,194.53,194.48,43.3577442]
[1755227311255,6.9777442,194.53,194.48,37.08]
[1755227311256,7.6977442,194.53,194.48,37.08]
[1755227311455,4.2975558,194.59,194.42,12.85875938]
[1755227311456,6.9777442,194.51,194.42,12.85875938]
[1755227311760,6.9777442,194.49,194.46,26.0]
[1755227312073,0.72,194.5,194.47,36.38]
[1755227312074,7.6977442,194.5,194.47,36.38]
[1755227312266,0.72,194.5,194.47,36.38]
[1755227312472,7.6977442,194.5,194.47,36.38]
[1755227312969,0.72,194.5,194.47,41.52205178]
[1755227313180,6.9777442,194.5,194.47,41.52205178]
[1755227313676,6.9777442,194.49,194.47,41.52205178]
[1755227314077,7.6977442,194.49,194.47,41.52205178]
[1755227314388,0.72,194.48,194.39,52.7898436]
[1755227314676,10.38620251,194.51,194.45,6.9777442]
[1755227314875,6.9777442,194.5,194.46,36.42]
[1755227315076,0.72,194.55,194.49,6.9777442]
[1755227315248,7.19709076,194.54,194.5,36.46]
[1755227315449,4.2975558,194.58,194.5,36.46]
[1755227315450,10.38631339,194.53,194.5,36.46]
[1755227315669,0.72,194.58,194.52,6.9777442]
[1755227315869,6.9777442,194.56,194.53,36.48]
[1755227316059,4.12842541,194.56,194.53,36.48]
[1755227316261,6.9777442,194.54,194.53,36.48]
[1755227317451,11.10628966,194.54,194.5,36.5]
[1755227317653,6.9777442,194.51,194.46,53.47084077]
[1755227317869,3.40945789,194.52,194.47,36.5]
[1755227318044,6.9777442,194.48,194.47,36.5]
[1755227318245,0.72,194.54,194.47,37.2]
[1755227318467,9.43740123,194.56,194.47,37.2]
[1755227318468,6.9777442,194.53,194.48,7.6777442]
[1755227318779,3.40990954,194.56,194.5,5.14138817]
[1755227318975,4.12936309,194.59,194.51,44.1777442]
[1755227319177,6.9777442,194.57,194.52,0.7]
[1755227319368,6.9777442,194.57,194.53,0.7]
[1755227319670,6.9777442,194.57,194.54,36.52]
[1755227320173,6.9777442,194.56,194.54,36.52]
[1755227320368,6.9777442,194.55,194.46,52.77084077]
[1755227320565,0.06,194.58,194.46,52.77084077]
[1755227320566,6.9777442,194.48,194.46,52.77084077]
[1755227320757,6.9777442,194.48,194.47,36.52]
[1755227320960,4.13073065,194.52,194.47,36.52]
[1755227321164,6.9777442,194.48,194.47,36.52]
[1755227321352,6.9777442,194.49,194.47,42.36218131]
[1755227321566,6.9777442,194.5,194.47,42.36218131]
[1755227321757,0.72,194.53,194.47,36.52]
[1755227321948,6.9777442,194.49,194.47,41.66206325]
[1755227322368,6.9777442,194.49,194.47,42.36206325]
[1755227323466,6.9777442,194.48,194.47,36.52]
[1755227324048,0.72,194.51,194.47,36.52]
[1755227324248,6.9777442,194.51,194.47,42.36214558]
[1755227324448,6.9777442,194.49,194.47,42.36214558]
[1755227324847,0.72,194.54,194.47,42.36214558]
[1755227325049,6.9777442,194.5,194.47,42.36214558]
[1755227325252,5.8604823,194.54,194.47,42.36214558]
[1755227325446,6.9777442,194.5,194.47,41.66214558]
[1755227326162,5.8604823,194.54,194.47,41.66214558]
[1755227326362,6.9777442,194.56,194.5,32.9777442]
[1755227326675,6.9777442,194.54,194.51,36.5]
[1755227326891,6.9777442,194.52,194.51,36.5]
[1755227327250,7.6977442,194.52,194.51,36.5]
[1755227327451,7.6977442,194.52,194.49,36.62]
[1755227327675,6.9777442,194.57,194.51,6.9777442]
[1755227327857,6.9777442,194.57,194.52,36.62]
[1755227328049,0.06,194.58,194.52,36.62]
[1755227328050,6.9777442,194.53,194.52,36.62]
[1755227328250,7.6977442,194.53,194.52,36.62]
[1755227328451,7.6977442,194.53,194.5,36.64]
[1755227328651,6.9777442,194.51,194.5,36.64]
[1755227328866,6.9777442,194.52,194.5,36.64]
[1755227329467,3.42216169,194.55,194.5,36.64]
[1755227329668,6.9777442,194.54,194.5,36.64]
[1755227329860,6.9777442,194.53,194.5,36.64]
[1755227330466,6.9777442,194.53,194.5,41.78132132]
[1755227332169,6.9777442,194.51,194.5,36.64]
[1755227332881,6.9777442,194.52,194.5,36.64]
[1755227333085,6.9777442,194.51,194.5,36.64]
[1755227334386,4.15506394,194.51,194.5,36.64]
[1755227334686,11.13280814,194.51,194.5,36.64]
[1755227334989,11.13280814,194.51,194.48,36.58]
[1755227335289,6.9777442,194.49,194.48,36.58]
[1755227335865,11.13748305,194.49,194.48,36.58]
[1755227336270,11.13748305,194.49,194.45,5.14249677]
[1755227336271,11.13748305,194.49,194.46,36.58]
[1755227336482,6.9777442,194.47,194.46,36.58]
[1755227336869,10.42288862,194.47,194.46,36.58]
[1755227337063,4.16514442,194.47,194.46,36.58]
[1755227337395,11.14288862,194.47,194.46,36.58]
[1755227337565,11.14288862,194.47,194.43,53.30993945]
[1755227337886,6.9777442,194.44,194.43,53.30993945]
[1755227338089,6.9777442,194.44,194.43,89.88993945]
[1755227338276,10.42895274,194.44,194.43,89.88993945]
[1755227338868,10.42895274,194.44,194.43,95.03317866]
[1755227339192,10.42895274,194.44,194.43,89.88993945]
[1755227339363,10.42895274,194.44,194.43,95.03317866]
[1755227339570,3.45120854,194.44,194.43,95.73317866]
[1755227339773,6.9777442,194.47,194.43,95.73317866]
[1755227339990,3.45232268,194.46,194.44,0.7]
[1755227340188,6.9777442,194.48,194.45,36.58]
[1755227340497,6.9777442,194.46,194.43,89.88993945]
[1755227340664,6.9777442,194.44,194.43,89.88993945]
[1755227340866,10.43012291,194.44,194.43,89.88993945]
[1755227341278,11.08012291,194.44,194.43,89.88993945]
[1755227341469,6.9777442,194.47,194.43,95.75317866]
[1755227341670,3.45218769,194.46,194.43,95.03317866]
[1755227341988,6.9777442,194.47,194.44,5.14273298]
[1755227342193,10.43022798,194.46,194.45,36.58]
[1755227342580,6.9777442,194.49,194.45,37.3]
[1755227342786,6.9777442,194.52,194.46,7.6977442]
[1755227342982,7.28744562,194.51,194.47,36.58]
[1755227343179,3.45217837,194.5,194.47,37.3]
[1755227343374,3.45217837,194.49,194.47,37.3]
[1755227343602,6.9777442,194.52,194.47,37.3]
[1755227343778,10.43018272,194.51,194.48,5.1419169]
[1755227343978,3.45243852,194.5,194.49,36.58]
[1755227345392,3.45243852,194.5,194.49,41.72165252]
[1755227345597,6.9777442,194.51,194.49,41.72165252]
[1755227346069,6.9777442,194.52,194.49,41.72165252]
[1755227346265,0.06,194.56,194.49,41.72165252]
[1755227346266,6.9777442,194.53,194.49,42.44165252]
[1755227346468,6.9777442,194.53,194.49,41.72165252]
[1755227346671,0.65,194.52,194.49,41.72165252]
[1755227346884,7.6277442,194.52,194.49,41.72165252]
[1755227347869,6.9777442,194.52,194.49,41.72165252]
[1755227348084,6.9777442,194.53,194.49,42.44165252]
[1755227348577,6.9777442,194.53,194.5,0.72]
[1755227348773,6.9777442,194.53,194.51,36.58]
[1755227349897,0.65,194.52,194.51,36.58]
[1755227350198,7.6277442,194.52,194.51,36.58]
[1755227350578,6.9777442,194.52,194.51,36.58]
[1755227351182,0.65,194.54,194.51,36.58]
[1755227351373,6.9777442,194.53,194.51,36.58]
[1755227351574,6.9777442,194.52,194.51,36.58]
[1755227352090,7.6277442,194.52,194.51,36.58]
[1755227352685,6.9777442,194.52,194.51,41.72112384]
[1755227353475,0.65,194.55,194.51,41.72112384]
[1755227353689,0.06,194.56,194.52,0.72]
[1755227354005,0.06,194.56,194.51,48.69886804]
[1755227354006,6.9777442,194.54,194.53,36.54]
[1755227354174,7.6277442,194.54,194.53,36.54]
[1755227354773,7.6877442,194.54,194.53,36.54]
[1755227355377,7.6877442,194.54,194.47,0.72]
[1755227355577,6.9777442,194.49,194.48,36.54]
[1755227355898,6.9777442,194.5,194.48,5.1419169]
[1755227356108,6.9777442,194.49,194.48,41.6819169]
[1755227356311,6.9777442,194.5,194.48,41.6819169]
[1755227359793,6.9777442,194.5,194.48,36.54]
[1755227359974,6.9777442,194.5,194.48,41.68190883]
[1755227360180,0.65,194.53,194.48,41.68190883]
[1755227360394,6.9777442,194.5,194.48,41.68190883]
[1755227360780,6.9777442,194.52,194.49,0.72]
[1755227360978,6.9777442,194.52,194.5,36.5]
[1755227361707,0.06,194.54,194.51,5.14112384]
[1755227362006,0.06,194.54,194.52,36.5]
[1755227363906,7.0377442,194.54,194.52,36.5]
[1755227364114,7.6877442,194.54,194.52,36.5]
[1755227365295,7.6277442,194.53,194.52,36.5]
[1755227367519,6.9777442,194.53,194.52,36.5]
[1755227368636,0.06,194.54,194.52,36.5]
[1755227368802,7.0377442,194.54,194.52,36.5]
[1755227369824,0.06,194.54,194.52,41.64085955]
[1755227370210,0.06,194.54,194.52,42.36085955]
[1755227370611,0.06,194.54,194.52,41.64085955]
[1755227371510,0.06,194.54,194.53,0.67]
[1755227371737,0.06,194.54,194.53,7.6477442]
[1755227372037,0.06,194.54,194.53,5.14059528]
[1755227372645,0.06,194.54,194.53,5.81059528]
[1755227372938,0.06,194.54,194.53,42.25059528]
[1755227373106,0.06,194.54,194.53,49.22833948]
[1755227373934,0.06,194.54,194.53,41.58059528]
[1755227375713,0.06,194.54,194.53,42.25059528]
[1755227376239,0.06,194.54,194.53,41.58059528]
[1755227377036,0.06,194.54,194.53,42.25059528]
[1755227379448,0.06,194.54,194.53,5.14059528]
[1755227379651,0.06,194.54,194.53,41.52059528]
[1755227380744,0.06,194.54,194.53,42.19059528]
[1755227382136,0.06,194.54,194.53,49.16833948]
[1755227384536,0.06,194.54,194.53,48.49833948]
[1755227385330,0.06,194.54,194.53,41.52059528]
[1755227385532,0.77,194.54,194.53,36.38]
[1755227386659,0.77,194.54,194.51,5.14108129]
[1755227386842,0.77,194.54,194.52,36.38]
[1755227387849,0.06,194.54,194.53,5.14059528]
[1755227393137,7.7477442,194.54,194.52,5.14079948]
[1755227393336,7.0377442,194.54,194.53,36.38]
[1755227393571,0.06,194.54,194.53,36.38]
[1755227393946,0.77,194.54,194.53,36.38]
[1755227395158,7.7477442,194.54,194.53,36.38]
[1755227396756,16.34707359,194.54,194.48,5.14186839]
[1755227396965,6.9777442,194.51,194.49,36.38]
[1755227397265,0.71,194.5,194.49,36.38]
[1755227397443,0.71,194.5,194.49,41.52165252]
[1755227397649,6.9777442,194.51,194.49,41.52165252]
[1755227397868,7.6877442,194.51,194.49,41.52165252]
[1755227398658,6.9777442,194.51,194.49,41.52165252]
[1755227399644,7.6877442,194.51,194.49,41.52165252]
[1755227399847,0.06,194.54,194.5,0.67]
[1755227400046,0.06,194.54,194.51,44.0277442]
[1755227400246,0.06,194.54,194.52,6.9777442]
[1755227400547,0.06,194.54,194.53,36.6]
[1755227400749,0.06,194.54,194.53,37.26]
[1755227401466,0.06,194.54,194.53,42.40059528]
[1755227402252,0.06,194.54,194.53,49.37833948]
[1755227403458,0.06,194.54,194.53,41.74059528]
[1755227403857,0.74,194.54,194.53,41.72059528]
[1755227404057,0.06,194.54,194.53,41.72059528]
[1755227404349,1e-08,194.54,194.53,49.872399]
[1755227404670,1e-08,194.56,194.55,26.0]
[1755227404846,1e-08,194.56,194.55,69.7377442]
[1755227405049,1e-08,194.56,194.55,70.3977442]
[1755227405266,1e-08,194.58,194.55,70.91175088]
[1755227405567,1e-08,194.58,194.57,12.11728266]
[1755227406079,1e-08,194.58,194.57,49.57728266]
[1755227409267,1e-08,194.58,194.57,48.87728266]
[1755227409677,1e-08,194.58,194.57,49.53728266]
[1755227409879,1e-08,194.58,194.57,41.89953846]
[1755227410047,1e-08,194.58,194.57,49.53728266]
[1755227413549,1e-08,194.58,194.57,48.87728266]
[1755227414466,1e-08,194.58,194.57,12.11728266]
[1755227414669,1e-08,194.58,194.57,48.87728266]
[1755227414861,1e-08,194.58,194.57,49.53728266]
[1755227418185,1e-08,194.58,194.57,76.0512365]
[1755227418498,1e-08,194.58,194.57,75.53728266]
[1755227422187,0.06,194.62,194.61,6.9777442]
[1755227422384,1e-08,194.62,194.61,43.6777442]
[1755227424086,1e-08,194.62,194.61,48.81622629]
[1755227426102,0.68000001,194.62,194.61,41.83848209]
[1755227426284,0.68000001,194.62,194.61,48.81622629]
[1755227427678,0.68000001,194.62,194.61,41.83848209]
[1755227428081,0.68000001,194.62,194.61,48.81622629]
[1755227429301,0.68000001,194.62,194.61,41.83848209]
[1755227429506,0.68000001,194.62,194.61,5.13848209]
[1755227429707,0.68000001,194.62,194.61,41.79848209]
[1755227430785,7.65774421,194.62,194.61,36.66]
[1755227430985,7.65774421,194.62,194.54,12.85064901]
[1755227431302,7.6777442,194.61,194.55,61.60797807]
[1755227431603,0.7,194.6,194.56,36.66]
[1755227432879,7.6777442,194.6,194.56,36.66]
[1755227433080,0.7,194.59,194.56,36.66]
[1755227433287,0.7,194.59,194.57,5.13953846]
[1755227433578,0.7,194.59,194.58,36.64]
[1755227433778,7.6777442,194.59,194.53,0.03]
[1755227434002,0.7,194.58,194.53,0.03]
[1755227434177,6.9777442,194.54,194.53,0.03]
[1755227434377,7.6777442,194.54,194.53,36.69]
[1755227435899,7.6777442,194.54,194.53,0.03]
[1755227436218,12.81807523,194.54,194.53,0.03]
[1755227441996,46.25926391,194.54,194.53,0.03]
[1755227443488,42.81807523,194.54,194.53,0.03]
[1755227445208,46.25787722,194.54,194.53,0.03]
[1755227445394,42.81807523,194.54,194.53,0.03]
[1755227445710,46.25684177,194.54,194.53,0.03]
[1755227446390,42.81807523,194.54,194.53,0.03]
[1755227448214,12.81807523,194.54,194.53,0.03]
[1755227448899,131.9,194.53,194.51,0.03]
[1755227449080,6.9777442,194.52,194.51,0.03]
[1755227449282,7.6777442,194.52,194.51,0.03]
[1755227450204,12.81860375,194.52,194.51,0.03]
[1755227450691,49.37860375,194.52,194.49,0.03]
[1755227450895,6.9777442,194.5,194.49,0.03]
[1755227451303,7.6777442,194.5,194.49,0.03]
[1755227452897,12.81913237,194.5,194.49,0.03]
[1755227453322,7.6777442,194.5,194.49,0.03]
[1755227455217,6.9777442,194.5,194.49,0.03]
[1755227457000,7.6777442,194.5,194.49,0.03]
[1755227457619,6.9777442,194.5,194.49,0.03]
[1755227461522,7.6777442,194.5,194.49,0.03]
[1755227462227,12.81913237,194.5,194.49,0.03]
[1755227462393,6.9777442,194.5,194.49,0.03]
[1755227466725,36.54,194.52,194.49,0.03]
[1755227466915,6.9777442,194.5,194.49,0.03]
[1755227467615,37.24,194.52,194.49,0.03]
[1755227467616,6.9777442,194.52,194.49,0.03]
[1755227467814,6.9777442,194.51,194.49,0.7]
[1755227468016,6.9777442,194.52,194.49,0.7]
[1755227468815,7.0377442,194.52,194.49,5.84152235]
[1755227470330,0.06,194.52,194.49,5.84152235]
[1755227470636,7.0377442,194.52,194.49,5.84152235]
[1755227470819,0.06,194.52,194.49,5.17152235]
[1755227471140,0.06,194.52,194.5,0.67]
[1755227471617,6.9777442,194.51,194.49,0.03]
[1755227471831,7.6777442,194.5,194.49,0.03]
[1755227472940,12.81913237,194.5,194.49,0.03]
[1755227473436,16.26645887,194.5,194.49,0.03]
[1755227477933,11.1250707,194.5,194.49,0.03]
[1755227478137,14.96689422,194.5,194.49,0.03]
[1755227481211,20.10828239,194.5,194.49,0.03]
[1755227486340,14.96689422,194.5,194.49,0.03]
[1755227488137,20.10828239,194.5,194.49,0.03]
[1755227488546,24.41616845,194.5,194.49,0.03]
[1755227488725,20.10828239,194.5,194.49,0.03]
[1755227488925,20.12783926,194.5,194.49,0.03]
[1755227489226,60.90138852,194.5,194.49,0.03]
[1755227490544,90.90138852,194.5,194.49,0.03]
[1755227491624,6.9777442,194.48,194.47,0.03]
[1755227491829,55.07881645,194.48,194.45,0.03]
[1755227492028,6.9777442,194.46,194.45,0.03]
[1755227492232,50.74645109,194.46,194.45,0.03]
[1755227492447,51.42645109,194.46,194.45,0.03]
[1755227492649,51.43443183,194.46,194.45,0.03]
[1755227493448,56.57687757,194.46,194.45,0.03]
[1755227495253,63.55462177,194.46,194.45,0.03]
[1755227495540,89.70481751,194.46,194.45,0.03]
[1755227496330,82.72707331,194.46,194.45,0.03]
[1755227496655,86.57354998,194.46,194.45,0.03]
[1755227496840,67.88365954,194.46,194.43,0.03]
[1755227497037,6.9777442,194.44,194.43,0.03]
[1755227497353,50.75110424,194.44,194.43,0.03]
[1755227497655,51.43110424,194.44,194.43,0.03]
[1755227498537,66.89302924,194.44,194.42,53.28267991]
[1755227498741,20.11434345,194.43,194.42,53.28267991]
[1755227499152,20.11434345,194.43,194.41,0.03]
[1755227499332,47.58462757,194.42,194.41,0.03]
[1755227500455,77.58462757,194.42,194.41,0.03]
[1755227500823,82.72813132,194.42,194.41,0.03]
[1755227502933,46.26813132,194.42,194.41,0.03]
[1755227503245,82.72813132,194.42,194.41,0.03]
[1755227506046,40.44462757,194.42,194.41,0.03]
[1755227506251,40.44462757,194.42,194.41,0.69]
[1755227506252,73.4377442,194.42,194.41,0.69]
[1755227506544,36.9777442,194.42,194.41,0.69]
[1755227507358,6.9777442,194.42,194.41,0.69]
[1755227508792,6.9777442,194.42,194.41,0.03]
[1755227512341,6.9777442,194.42,194.41,0.69]
[1755227512750,41.60331456,194.43,194.41,0.69]
[1755227513081,6.9777442,194.42,194.41,0.03]
[1755227513864,12.80124795,194.42,194.41,0.03]
[1755227514853,16.2526222,194.42,194.41,0.03]
[1755227515453,148.1526222,194.42,194.41,0.03]
[1755227518970,16.2526222,194.42,194.41,0.03]
[1755227519453,18.3144252,194.42,194.41,0.03]
[1755227520659,48.3144252,194.42,194.41,0.03]
[1755227522355,6.9777442,194.4,194.39,0.03]
[1755227522555,43.4377442,194.4,194.39,0.03]
[1755227522767,46.88911845,194.4,194.39,0.03]
[1755227523073,47.58911845,194.4,194.39,0.03]
[1755227524380,52.73315137,194.4,194.39,0.03]
[1755227524958,10.42911845,194.4,194.39,0.7]
[1755227525148,43.4377442,194.4,194.39,0.7]
[1755227525567,43.4377442,194.4,194.39,0.03]
[1755227525568,48.58177712,194.4,194.39,0.03]
[1755227527566,43.4377442,194.4,194.39,0.03]
[1755227527755,6.9777442,194.4,194.39,0.7]
[1755227528587,6.9777442,194.41,194.39,0.7]
[1755227528787,6.9777442,194.4,194.39,0.7]
[1755227528970,6.9777442,194.4,194.39,0.03]
[1755227529159,36.44,194.42,194.39,0.03]
[1755227529363,6.9777442,194.4,194.39,0.03]
[1755227530169,6.9777442,194.4,194.39,0.7]
[1755227530558,0.06,194.43,194.39,0.7]
[1755227530766,7.0377442,194.43,194.39,5.84429754]
[1755227530973,0.06,194.43,194.4,0.67]
[1755227531166,7.0377442,194.43,194.4,0.67]
[1755227531587,6.9777442,194.42,194.4,0.67]
[1755227532006,6.9777442,194.42,194.41,0.67]
[1755227532789,6.9777442,194.42,194.39,0.7]
[1755227532985,6.9777442,194.42,194.39,0.03]
[1755227533287,6.9777442,194.42,194.4,0.67]
[1755227533459,6.9777442,194.42,194.39,0.03]
[1755227533660,6.9777442,194.42,194.41,0.67]
[1755227533867,6.9777442,194.42,194.39,0.7]
[1755227534174,6.9777442,194.42,194.39,0.03]
[1755227534488,6.9777442,194.42,194.39,0.7]
[1755227535675,6.9777442,194.4,194.39,0.03]
[1755227537691,6.9777442,194.41,194.39,0.03]
[1755227537902,6.9777442,194.42,194.39,0.7]
[1755227538079,3.46314332,194.41,194.39,0.7]
[1755227538279,6.9777442,194.41,194.39,0.7]
[1755227538599,6.9777442,194.41,194.39,0.03]
[1755227539279,6.9777442,194.41,194.39,0.7]
[1755227540101,6.9777442,194.42,194.39,0.7]
[1755227540891,7.6777442,194.42,194.39,0.03]
[1755227541092,6.9777442,194.41,194.39,0.03]
[1755227541321,6.9777442,194.4,194.39,0.03]
[1755227542283,7.6777442,194.4,194.39,0.03]
[1755227542486,11.1419358,194.4,194.39,0.03]
[1755227542886,16.28596872,194.4,194.39,0.03]
[1755227544787,20.13562608,194.4,194.39,0.03]
[1755227545611,16.28596872,194.4,194.39,0.03]
[1755227546281,20.13550299,194.4,194.39,0.03]
[1755227548683,20.13550299,194.4,194.38,0.03]
[1755227548984,51.43147007,194.39,194.37,0.03]
[1755227549200,14.29147007,194.38,194.37,0.03]
[1755227549411,44.99147007,194.38,194.36,0.03]
[1755227549588,55.0408748,194.37,194.36,0.03]
[1755227549786,55.7408748,194.37,194.36,0.03]
[1755227550015,55.0408748,194.37,194.36,0.03]
[1755227550219,46.8619358,194.37,194.36,0.03]
[1755227550397,3.4641916,194.37,194.36,0.7]
[1755227550924,16.24676267,194.37,194.36,0.03]
[1755227551128,56.51391505,194.37,194.36,0.03]
[1755227551998,50.70908818,194.37,194.36,0.03]
[1755227552215,7.31134398,194.37,194.36,0.03]
[1755227552520,3.4641916,194.37,194.36,0.72]
[1755227553234,10.4419358,194.37,194.36,0.03]
[1755227553404,11.1019358,194.37,194.36,0.03]
[1755227553607,16.24676267,194.37,194.36,0.03]
[1755227553925,20.09205168,194.37,194.36,0.03]
[1755227554125,24.42145641,194.37,194.36,0.03]
[1755227554723,14.28722481,194.37,194.36,0.03]
[1755227555024,46.8619358,194.37,194.36,0.03]
[1755227557395,10.4419358,194.37,194.36,0.03]
[1755227558326,6.9777442,194.37,194.36,0.72]
[1755227559002,10.43580354,194.37,194.36,0.03]
[1755227559937,16.24063041,194.37,194.36,0.03]
[1755227560399,52.66063041,194.37,194.36,0.03]
[1755227562309,52.00063041,194.37,194.36,0.03]
[1755227562507,46.85580354,194.37,194.36,0.03]
[1755227563409,52.66063041,194.37,194.36,0.03]
[1755227564208,52.00063041,194.37,194.36,0.03]
[1755227564716,46.85580354,194.37,194.36,0.03]
[1755227565114,47.51580354,194.37,194.36,0.03]
[1755227565716,52.66063041,194.37,194.36,0.03]
[1755227566812,56.50156388,194.37,194.36,0.03]
[1755227568323,86.50156388,194.37,194.36,0.03]
[1755227568519,56.50156388,194.37,194.36,0.03]
[1755227568727,49.52381968,194.37,194.36,0.03]
[1755227568943,56.50156388,194.37,194.36,0.03]
[1755227569336,52.66063041,194.37,194.36,0.03]
[1755227570415,10.43580354,194.37,194.36,0.03]
[1755227570616,3.45805934,194.37,194.36,0.72]
[1755227570915,10.43580354,194.39,194.36,0.72]
[1755227571112,3.45805934,194.38,194.36,0.72]
[1755227571317,6.9777442,194.39,194.36,0.72]
[1755227571533,6.9777442,194.38,194.36,0.03]
[1755227571813,10.43220658,194.37,194.36,0.03]
[1755227572250,47.51220658,194.37,194.36,0.03]
[1755227572530,10.43220658,194.37,194.36,0.03]
[1755227572746,46.85220658,194.37,194.36,0.03]
[1755227573317,51.99703345,194.37,194.36,0.03]
[1755227573519,52.65703345,194.37,194.36,0.03]
[1755227574525,39.87446238,194.37,194.36,0.03]
[1755227575036,10.43220658,194.37,194.36,0.72]
[1755227575241,10.43220658,194.37,194.36,0.03]
[1755227576145,3.45446238,194.37,194.36,0.72]
[1755227576370,3.45446238,194.38,194.36,0.72]
[1755227576653,0.06,194.39,194.36,5.86495189]
[1755227576820,0.06,194.39,194.37,0.69]
[1755227577842,7.0377442,194.39,194.37,0.69]
[1755227578037,6.9777442,194.38,194.36,0.03]
[1755227579323,6.9777442,194.37,194.36,0.03]
[1755227579946,10.43538586,194.37,194.36,0.03]
[1755227580724,0.06,194.39,194.36,0.03]
[1755227580921,10.4359914,194.38,194.36,0.03]
[1755227581121,6.9777442,194.38,194.36,0.03]
[1755227581863,0.06,194.39,194.37,0.66]
[1755227582062,0.06,194.39,194.38,0.66]
[1755227582545,0.06,194.39,194.36,0.69]
[1755227582861,6.9777442,194.38,194.36,0.03]
[1755227583356,7.0377442,194.39,194.36,0.69]
[1755227584129,0.06,194.39,194.37,0.66]
[1755227585058,7.0377442,194.39,194.36,0.03]
[1755227585262,3.46104137,194.38,194.36,0.03]
[1755227585562,7.0377442,194.39,194.36,0.03]
[1755227585858,3.46104137,194.38,194.36,0.03]
[1755227586155,7.0377442,194.39,194.36,0.03]
[1755227586358,3.46162235,194.38,194.36,0.03]
[1755227586540,7.0377442,194.39,194.36,0.03]
[1755227586740,3.46177174,194.38,194.36,0.03]